bitfinex/quotes_BTCUSD_20260215
["timestamp","ask_amount","ask_price","bid_price","bid_amount"]
[1771173934182,0.08084497,69066.0,69054.0,0.0002]
[1771173936646,0.08084497,69066.0,69054.0,0.02464721]
[1771173945277,0.95468635,69070.0,69054.0,0.02464721]
[1771173945502,1.0329203,69070.0,69054.0,0.02464721]
[1771173945752,0.40315395,69070.0,69054.0,0.02464721]
[1771173945970,1.0329203,69070.0,69054.0,0.02464721]
[1771173946929,0.62976635,69070.0,69054.0,0.02464721]
[1771173947562,0.00012932,69078.0,69062.0,0.0802036]
[1771173947802,0.00012932,69078.0,69063.0,0.02390528]
[1771173949635,0.07836327,69078.0,69063.0,0.02390528]
[1771173949844,0.0004,69066.0,69063.0,0.02390528]
[1771173950170,0.07836327,69078.0,69063.0,0.02390528]
[1771173950171,0.0004,69073.0,69063.0,0.02390528]
[1771173952245,0.00012932,69078.0,69066.0,0.02390528]
[1771173952447,0.00012932,69078.0,69069.0,0.02390528]
[1771173956665,0.00012932,69078.0,69070.0,0.02390528]
[1771173956883,0.00012932,69078.0,69070.0,0.07239016]
[1771173957115,0.00012932,69078.0,69070.0,0.02390528]
[1771173958883,0.00052932,69078.0,69070.0,0.02390528]
[1771173959989,0.0004,69085.0,69070.0,0.10410888]
[1771173960190,0.0004,69085.0,69074.0,0.02390528]
[1771173960455,0.0004,69085.0,69074.0,0.02386133]
[1771173960797,0.0001788,69114.0,69074.0,0.02386133]
[1771173960798,0.02365566,69106.0,69074.0,0.62996385]
[1771173961001,0.07823395,69104.0,69090.0,0.62976635]
[1771173961233,0.70222493,69110.0,69091.0,0.02390528]
[1771173961234,0.0001099,69110.0,69091.0,0.02390528]
[1771173961452,0.02365566,69107.0,69091.0,0.02390528]
[1771173961653,0.07823395,69100.0,69084.0,0.02390528]
[1771173962330,0.07866486,69100.0,69084.0,0.02390528]
[1771173962534,0.00043091,69100.0,69090.0,0.62976635]
[1771173962778,0.00043091,69100.0,69091.0,0.02390528]
[1771173963218,0.0001099,69110.0,69090.0,0.62976635]
[1771173963544,0.07847307,69110.0,69091.0,0.02390528]
[1771173963726,0.07847307,69110.0,69093.0,0.02390528]
[1771173965197,0.00023912,69110.0,69100.0,0.62976635]
[1771173965425,0.32496,69116.0,69100.0,0.62976635]
[1771173965606,0.32496,69116.0,69101.0,0.02390528]
[1771173965802,0.07823395,69120.0,69101.0,0.02390528]
[1771173965994,0.07823395,69118.0,69101.0,0.02390528]
[1771173966197,0.0001537,69127.0,69110.0,0.02390528]
[1771173966402,0.7080003,69120.0,69111.0,0.34688]
[1771173966604,0.07823395,69120.0,69111.0,0.34688]
[1771173967658,0.0004,69117.0,69111.0,0.34688]
[1771173968074,0.0004,69117.0,69111.0,0.34398728]
[1771173970725,0.07823395,69116.0,69104.0,0.02390528]
[1771173970930,0.07823395,69113.0,69101.0,0.34684]
[1771173971135,0.02365566,69109.0,69101.0,0.34684]
[1771173971390,0.10188961,69109.0,69101.0,0.34684]
[1771173972334,8.78e-05,69136.0,69118.0,0.02390528]
[1771173972448,0.02365566,69138.0,69137.0,0.1116042]
[1771173972649,0.10188961,69138.0,69137.0,0.1116042]
[1771173972854,0.07823395,69135.0,69112.0,0.02390528]
[1771173973161,0.02365566,69136.0,69120.0,0.62976635]
[1771173973381,0.26732,69136.0,69123.0,0.0238298]
[1771173973812,0.26744917,69136.0,69123.0,0.0238298]
[1771173974195,0.00012917,69136.0,69123.0,0.0238298]
[1771173975730,0.00012917,69136.0,69126.0,0.62976635]
[1771173976268,0.00012917,69136.0,69123.0,0.0238298]
[1771173978991,0.00012917,69136.0,69120.0,0.70707246]
[1771173979375,0.10020116,69136.0,69119.0,0.0238298]
[1771173979912,0.10020116,69136.0,69121.0,0.0238298]
[1771173980453,0.02271576,69136.0,69121.0,0.0238298]
[1771173981162,8.917e-05,69136.0,69126.0,0.70708852]
[1771173981306,8.917e-05,69136.0,69127.0,0.0238298]
[1771173982748,0.00048917,69136.0,69127.0,0.0238298]
[1771173985274,0.02258659,69134.0,69111.0,0.0002]
[1771173985520,0.0774854,69131.0,69111.0,0.0002]
[1771173985692,0.02258659,69128.0,69111.0,0.0240298]
[1771173985894,0.10007199,69128.0,69111.0,0.0240298]
[1771173986117,0.00024586,69136.0,69111.0,0.0240298]
[1771173986118,0.10007199,69134.0,69113.0,0.0238298]
[1771173986320,0.10007199,69133.0,69113.0,0.0238298]
[1771173986523,0.32348,69132.0,69113.0,0.0238298]
[1771173986723,0.42355199,69132.0,69113.0,0.0238298]
[1771173987142,0.02258659,69131.0,69113.0,0.0238298]
[1771173987310,0.32348,69132.0,69113.0,0.0238298]
[1771173987500,0.10007199,69131.0,69113.0,0.0238298]
[1771173987706,0.32348,69132.0,69111.0,0.0002]
[1771173988458,0.10007199,69131.0,69111.0,0.0002]
[1771173988773,0.32348,69132.0,69111.0,0.0002]
[1771173988941,0.10007199,69131.0,69111.0,0.0002]
[1771173989342,0.70708852,69130.0,69104.0,0.09288]
[1771173989523,0.32348,69132.0,69110.0,0.70708852]
[1771173989524,0.07232555,69132.0,69110.0,0.70708852]
[1771173989719,0.48840656,69131.0,69110.0,0.70708852]
[1771173990209,0.10007199,69130.0,69110.0,0.70708852]
[1771173990407,0.41608,69131.0,69111.0,0.0238298]
[1771173990621,0.41608,69130.0,69112.0,0.0238298]
[1771173990873,0.02258659,69131.0,69112.0,0.0238298]
[1771173990874,0.41608,69129.0,69112.0,0.0238298]
[1771173991180,0.43866659,69129.0,69112.0,0.0238298]
[1771173991378,0.02258659,69128.0,69112.0,0.0238298]
[1771173991881,0.3234,69127.0,69112.0,0.0238298]
[1771173992256,0.34598659,69127.0,69112.0,0.0238298]
[1771173993096,0.32328,69127.0,69112.0,0.0238298]
[1771173993506,0.0774854,69125.0,69111.0,0.0002]
[1771173993711,0.32328,69127.0,69111.0,0.0002]
[1771173993712,0.02258659,69122.0,69111.0,0.0002]
[1771173993872,0.02258659,69120.0,69111.0,0.0002]
[1771173994288,0.0774854,69121.0,69094.0,0.0238298]
[1771173994289,0.70708852,69121.0,69094.0,0.0238298]
[1771173994472,0.07233868,69120.0,69094.0,0.0238298]
[1771173994681,0.07233777,69121.0,69098.0,0.0238298]
[1771173995220,0.02258659,69116.0,69098.0,0.0238298]
[1771173995422,0.0774854,69113.0,69098.0,0.0238298]
[1771173995637,0.30842659,69112.0,69098.0,0.0238298]
[1771173996250,0.10007199,69111.0,69098.0,0.0238298]
[1771173996623,0.28584,69112.0,69098.0,0.00012917]
[1771173996995,0.10007199,69111.0,69098.0,0.00012917]
[1771173997361,0.28584,69112.0,69098.0,0.00012917]
[1771173997645,0.02258659,69110.0,69098.0,0.00012917]
[1771173999881,0.28584,69112.0,69098.0,0.00012917]
[1771174000032,0.32304,69118.0,69102.0,0.0238298]
[1771174000236,0.02258659,69120.0,69102.0,0.0238298]
[1771174000436,0.07233191,69126.0,69101.0,0.07833648]
[1771174000437,0.15544,69126.0,69110.0,0.0238298]
[1771174001503,0.2329254,69126.0,69110.0,0.0238298]
[1771174001690,0.02258659,69125.0,69110.0,0.0238298]
[1771174001937,0.02258659,69123.0,69100.0,0.70708852]
[1771174002126,0.02258659,69122.0,69102.0,0.07833648]
[1771174002329,0.02258659,69122.0,69104.0,0.07833648]
[1771174002506,0.17802659,69126.0,69106.0,0.07833648]
[1771174002712,0.17802659,69126.0,69107.0,0.0238298]
[1771174002873,0.0774854,69125.0,69107.0,0.0238298]
[1771174003072,0.02258659,69124.0,69107.0,0.0238298]
[1771174003732,0.02258659,69124.0,69107.0,0.02368337]
[1771174003942,0.0767554,69124.0,69107.0,0.02368337]
[1771174004136,0.02311776,69123.0,69107.0,0.02368337]
[1771174005384,0.02311776,69123.0,69100.0,0.70708852]
[1771174005608,0.02311776,69121.0,69101.0,0.02270709]
[1771174005824,0.0767554,69119.0,69101.0,0.02270709]
[1771174006024,0.02311776,69118.0,69101.0,0.02270709]
[1771174006951,0.15544,69126.0,69102.0,0.07551565]
[1771174007188,0.17855776,69126.0,69104.0,0.07551565]
[1771174007405,0.17855776,69126.0,69100.0,0.70708852]
[1771174007406,0.17855776,69126.0,69106.0,0.07551565]
[1771174007587,0.02311776,69125.0,69107.0,0.02270709]
[1771174007811,0.0767554,69125.0,69107.0,0.02270709]
[1771174008013,0.02311776,69124.0,69107.0,0.02270709]
[1771174008306,0.02311776,69123.0,69107.0,0.02270709]
[1771174010388,0.15544,69126.0,69108.0,0.07551565]
[1771174010687,0.15544,69126.0,69109.0,0.02270709]
[1771174010907,0.02311776,69125.0,69109.0,0.02270709]
[1771174011310,0.02311776,69124.0,69109.0,0.02270709]
[1771174011797,0.02311776,69123.0,69109.0,0.02270709]
[1771174012216,0.09987316,69123.0,69109.0,0.02270709]
[1771174012396,0.02311776,69122.0,69109.0,0.02270709]
[1771174013156,0.07232858,69129.0,69098.0,0.00032917]
[1771174013157,0.11579776,69134.0,69113.0,0.07551565]
[1771174013350,0.322,69129.0,69115.0,0.02270709]
[1771174013796,0.32196,69131.0,69118.0,0.02270709]
[1771174014509,0.09987316,69135.0,69118.0,0.02270709]
[1771174014510,0.32196,69130.0,69118.0,0.02270709]
[1771174016787,0.02311776,69128.0,69102.0,0.02270709]
[1771174017000,0.0004,69134.0,69100.0,0.70708852]
[1771174017001,0.02311776,69126.0,69104.0,0.02270709]
[1771174017236,0.06936,69127.0,69112.0,0.07551565]
[1771174017465,0.09247776,69127.0,69113.0,0.02270709]
[1771174018083,0.02311776,69127.0,69113.0,0.02270709]
[1771174020693,0.02311776,69125.0,69110.0,0.70708852]
[1771174021137,0.02311776,69125.0,69110.0,0.72979561]
[1771174021782,0.02311776,69125.0,69110.0,0.70708852]
[1771174021991,0.02311776,69125.0,69111.0,0.02270709]
[1771174022418,0.09268,69131.0,69111.0,0.02270709]
[1771174022419,0.32148,69131.0,69115.0,0.70708852]
[1771174022629,0.02311776,69129.0,69100.0,0.70708852]
[1771174022851,0.02311776,69125.0,69104.0,0.02270709]
[1771174023073,0.0767554,69123.0,69104.0,0.02270709]
[1771174023284,0.09987316,69123.0,69104.0,0.02270709]
[1771174023751,0.02311776,69122.0,69104.0,0.02270709]
[1771174023934,0.0767554,69121.0,69104.0,0.02270709]
[1771174024106,0.02311776,69120.0,69104.0,0.02270709]
[1771174024920,0.07234394,69115.0,69097.0,0.0002]
[1771174025097,0.21708,69128.0,69107.0,0.0002]
[1771174025098,0.0767554,69114.0,69107.0,0.0002]
[1771174025307,0.02311776,69111.0,69097.0,0.0002]
[1771174025503,0.02311776,69109.0,69097.0,0.0002]
[1771174025915,0.02311776,69109.0,69100.0,0.0002]
[1771174026961,0.02311776,69108.0,69100.0,0.0002]
[1771174029007,0.0767554,69104.0,69093.0,0.0002412]
[1771174029212,0.02311776,69101.0,69093.0,0.00067211]
[1771174030785,0.32104,69104.0,69093.0,0.00067211]
[1771174031022,0.32104,69104.0,69094.0,0.02270709]
[1771174031436,0.321,69106.0,69094.0,0.02270709]
[1771174034531,0.321,69106.0,69094.0,0.02285289]
[1771174035144,0.321,69106.0,69094.0,0.02305289]
[1771174035529,0.321,69106.0,69094.0,0.0003458]
[1771174035727,0.02357484,69105.0,69094.0,0.0003458]
[1771174036746,0.02357484,69103.0,69094.0,0.0003458]
[1771174037716,0.02357484,69101.0,69094.0,0.0003458]
[1771174037865,0.321,69106.0,69091.0,0.0002]
[1771174038067,0.3214303,69106.0,69091.0,0.02313328]
[1771174038696,0.34500514,69106.0,69091.0,0.02313328]
[1771174039520,0.02400514,69106.0,69091.0,0.02313328]
[1771174039754,0.32096,69105.0,69091.0,0.02313328]
[1771174041865,0.34453484,69105.0,69091.0,0.02313328]
[1771174045039,0.0004303,69106.0,69095.0,0.62906946]
[1771174045247,0.32096,69104.0,69095.0,0.65200274]
[1771174046278,0.32096,69104.0,69091.0,0.0002]
[1771174046571,0.02357484,69103.0,69091.0,0.0002]
[1771174047420,0.02357484,69101.0,69091.0,0.0002]
[1771174048826,0.02357484,69101.0,69091.0,5.36e-05]
[1771174049691,0.02357484,69101.0,69083.0,0.02293328]
[1771174049900,0.02357484,69101.0,69090.0,0.62906946]
[1771174054984,0.02357484,69101.0,69083.0,0.02293328]
[1771174055227,0.39363381,69105.0,69083.0,0.02293328]
[1771174055463,0.07573238,69102.0,69090.0,0.0002]
[1771174055677,0.39363381,69105.0,69090.0,0.0002]
[1771174055678,0.02357484,69100.0,69090.0,0.0002]
[1771174058154,0.02357484,69100.0,69090.0,0.62926946]
[1771174058538,0.02357484,69098.0,69090.0,0.0002]
[1771174058746,0.02357484,69097.0,69090.0,0.0002]
[1771174065951,0.3218,69096.0,69090.0,0.0002]
[1771174069183,0.32184,69096.0,69090.0,0.0002]
[1771174072766,0.3218,69098.0,69090.0,0.0002]
[1771174077684,0.32188,69097.0,69090.0,0.0002]
[1771174079277,0.32188,69097.0,69090.0,0.02399876]
[1771174083004,0.32188,69097.0,69090.0,0.0002]
[1771174084985,0.32228,69097.0,69090.0,0.0002]
[1771174089893,0.07589557,69095.0,69087.0,0.0003682]
[1771174090119,0.02282337,69094.0,69087.0,0.0003682]
[1771174090386,0.02282337,69094.0,69084.0,0.0002]
[1771174090387,0.02282337,69093.0,69084.0,0.0002]
[1771174092239,0.02282337,69092.0,69084.0,0.0002]
[1771174093424,0.10151906,69092.0,69090.0,0.0002]
[1771174093602,0.02442446,69091.0,69090.0,0.0002]
[1771174096065,0.39464224,69097.0,69090.0,0.0002]
[1771174096066,0.32228,69097.0,69090.0,0.0002]
[1771174096274,0.02442446,69096.0,69090.0,0.0002]
[1771174097610,0.32228,69097.0,69090.0,0.0002]
[1771174098840,0.34670446,69097.0,69090.0,0.0002]
[1771174099236,0.32228,69097.0,69090.0,0.0002]
[1771174099467,0.02442446,69096.0,69090.0,0.0002]
[1771174100832,0.34826446,69095.0,69090.0,0.0002]
[1771174108467,0.02442446,69094.0,69090.0,0.0002]
[1771174108668,0.02442446,69094.0,69084.0,0.0002]
[1771174108879,0.02442446,69092.0,69084.0,0.0002]
[1771174109084,0.02442446,69091.0,69084.0,0.0002]
[1771174109302,0.02442446,69090.0,69084.0,0.0002]
[1771174109710,0.02442446,69090.0,69077.0,0.0002]
[1771174109914,0.07869569,69087.0,69077.0,0.0002]
[1771174110111,0.34926446,69086.0,69077.0,0.0002]
[1771174111270,0.34926446,69086.0,69077.0,1.626e-05]
[1771174113241,0.34926446,69086.0,69080.0,0.0002]
[1771174121907,0.34926446,69086.0,69063.0,0.07857881]
[1771174121908,0.07869569,69085.0,69063.0,0.07857881]
[1771174122147,0.02442446,69084.0,69063.0,0.07857881]
[1771174122708,0.02442446,69084.0,69065.0,0.01895942]
[1771174123227,0.02451161,69084.0,69070.0,0.62928105]
[1771174124306,0.02451161,69084.0,69066.0,0.07892291]
[1771174124307,0.02486029,69083.0,69066.0,0.07892291]
[1771174124530,0.32616,69082.0,69066.0,0.07892291]
[1771174124687,0.02486029,69081.0,69066.0,0.07892291]
[1771174125833,0.62928105,69080.0,69066.0,0.0003441]
[1771174126017,0.07739773,69077.0,69066.0,0.0003441]
[1771174126217,0.02486029,69076.0,69066.0,0.0003441]
[1771174128036,0.02486029,69076.0,69070.0,0.0002]
[1771174130604,0.40355773,69082.0,69070.0,0.0002]
[1771174130828,0.02486029,69081.0,69070.0,0.0002]
[1771174132286,0.327,69080.0,69070.0,0.0002]
[1771174136545,0.35186029,69080.0,69070.0,0.0002]
[1771174136772,0.02486029,69079.0,69070.0,0.0002]
[1771174137541,0.35230029,69078.0,69070.0,0.0002]
[1771174143001,0.328,69077.0,69070.0,0.0002]
[1771174155794,0.328,69077.0,69070.0,0.0004236]
[1771174157738,0.0004,69081.0,69071.0,0.0792732]
[1771174158023,8.715e-05,69084.0,69071.0,0.0792732]
[1771174158570,0.0004,69077.0,69071.0,0.0792732]
[1771174158789,0.0004,69077.0,69071.0,0.0794968]
[1771174165173,0.0004,69091.0,69071.0,0.0002236]
[1771174165378,0.0004,69093.0,69071.0,0.0002236]
[1771174165379,0.11488,69093.0,69079.0,0.0792732]
[1771174165575,0.11488,69093.0,69079.0,0.07970397]
[1771174165766,0.11488,69093.0,69079.0,0.07979827]
[1771174165961,0.0004,69093.0,69079.0,0.07979827]
[1771174166831,0.0004,69084.0,69079.0,0.07979827]
[1771174167045,0.0004,69091.0,69079.0,0.07979827]
[1771174167398,0.12421375,69097.0,69079.0,0.07979827]
[1771174169212,0.12421375,69097.0,69080.0,0.62941438]
[1771174169623,0.12421375,69097.0,69087.0,0.62941438]
[1771174169915,0.0004,69097.0,69081.0,0.0793675]
[1771174171061,0.0004,69097.0,69087.0,0.62941438]
[1771174171476,0.0004,69105.0,69087.0,0.62941438]
[1771174171721,0.0004,69105.0,69091.0,0.62941438]
[1771174171919,0.0004,69105.0,69084.0,0.34692]
[1771174171920,0.0004,69105.0,69095.0,0.62941438]
[1771174172234,0.0004,69105.0,69095.0,0.70868758]
[1771174172672,0.0004,69105.0,69081.0,9.43e-05]
[1771174172673,0.07234428,69114.0,69081.0,9.43e-05]
[1771174172674,0.12381375,69117.0,69101.0,0.0792732]
[1771174172822,0.12381375,69117.0,69103.0,0.0792732]
[1771174173227,0.12381375,69117.0,69100.0,0.62941438]
[1771174173814,0.12381375,69117.0,69100.0,0.6295436]
[1771174174064,0.12381375,69117.0,69100.0,0.7088168]
[1771174174065,0.0004,69105.0,69100.0,0.7088168]
[1771174174269,0.0004,69105.0,69100.0,0.07940242]
[1771174177807,0.0004,69105.0,69100.0,0.00012922]
[1771174181031,0.0004,69105.0,69095.0,0.34688]
[1771174181203,0.00049971,69105.0,69095.0,0.34688]
[1771174181414,0.12381375,69104.0,69095.0,0.34688]
[1771174181635,0.07481501,69103.0,69088.0,0.0001293]
[1771174181871,0.19862876,69100.0,69088.0,0.0001293]
[1771174181998,0.06664692,69097.0,69080.0,0.97621438]
[1771174182201,0.62941438,69100.0,69073.0,0.0001293]
[1771174182202,0.07481501,69094.0,69073.0,0.0001293]
[1771174182575,0.0001293,69098.0,69073.0,0.2968093]
[1771174182576,0.06664692,69093.0,69073.0,0.2968093]
[1771174182772,0.06664692,69090.0,69073.0,0.2968093]
[1771174182974,0.06664692,69088.0,69073.0,0.2968093]
[1771174183120,0.07481501,69086.0,69073.0,0.0001293]
[1771174183325,0.06664692,69083.0,69073.0,0.0001293]
[1771174183534,0.06664692,69082.0,69073.0,0.0001293]
[1771174183960,0.06664692,69082.0,69073.0,9.27e-05]
[1771174184371,0.12381375,69086.0,69073.0,9.27e-05]
[1771174184567,0.07785307,69085.0,69073.0,0.00052347]
[1771174184772,0.07785307,69085.0,69070.0,0.62941438]
[1771174184773,0.12381375,69082.0,69070.0,0.62941438]
[1771174184986,0.12381375,69082.0,69070.0,8.715e-05]
[1771174185266,0.12381375,69081.0,69070.0,8.715e-05]
[1771174185470,0.12381375,69078.0,69066.0,0.0002]
[1771174185595,0.12381375,69077.0,69066.0,0.0002]
[1771174185791,0.12381375,69076.0,69066.0,0.0002]
[1771174186425,0.06664692,69075.0,69066.0,0.0002]
[1771174186666,0.06664692,69075.0,69058.0,0.16645709]
[1771174186667,0.06664692,69071.0,69060.0,0.62941438]
[1771174187141,0.06664692,69071.0,69056.0,0.07397709]
[1771174188118,0.06664692,69071.0,69066.0,0.0002]
[1771174188617,0.32664,69073.0,69066.0,0.0002]
[1771174189024,0.001,69071.0,69066.0,0.0002]
[1771174189654,0.001,69071.0,69066.0,0.07397709]
[1771174190211,0.45057375,69077.0,69066.0,0.07397709]
[1771174190839,8.104e-05,69078.0,69067.0,0.62941438]
[1771174191040,8.104e-05,69078.0,69068.0,0.07377709]
[1771174191260,0.23228692,69084.0,69071.0,0.07377709]
[1771174191459,0.23228692,69084.0,69071.0,0.07390641]
[1771174191660,0.06664692,69084.0,69071.0,0.07390641]
[1771174192858,0.000165,69086.0,69071.0,0.07390641]
[1771174193060,0.12397875,69086.0,69071.0,0.07390641]
[1771174194993,0.12397875,69086.0,69071.0,0.07410641]
[1771174195378,0.12397875,69086.0,69071.0,0.00032932]
[1771174195910,0.12381375,69094.0,69076.0,0.62941438]
[1771174196125,0.12381375,69094.0,69071.0,0.00032932]
[1771174196126,0.12381375,69094.0,69081.0,0.07377709]
[1771174197741,0.12381375,69090.0,69071.0,0.00032932]
[1771174197951,0.12381375,69090.0,69056.0,0.09292]
[1771174197952,0.000165,69095.0,69056.0,0.0002]
[1771174197953,0.06664692,69073.0,69056.0,0.0002]
[1771174198153,1.25882876,69081.0,69056.0,0.0002]
[1771174198154,0.07785307,69068.0,69056.0,0.0002]
[1771174198357,0.06664692,69065.0,69056.0,0.0002]
[1771174199143,0.06664692,69065.0,69057.0,0.00028104]
[1771174200164,0.70861378,69080.0,69057.0,0.00028104]
[1771174200165,0.382317,69098.0,69057.0,0.00028104]
[1771174200500,0.24694775,69110.0,69071.0,0.07377709]
[1771174200501,0.12381375,69096.0,69071.0,0.07377709]
[1771174200783,0.12381375,69096.0,69075.0,0.07377709]
[1771174200987,0.07785307,69096.0,69075.0,0.07377709]
[1771174201185,0.12381375,69095.0,69075.0,0.07377709]
[1771174201568,0.0004,69084.0,69075.0,0.07377709]
[1771174206425,0.0004,69091.0,69075.0,0.07377709]
[1771174207750,0.06704692,69091.0,69075.0,0.07377709]
[1771174209329,0.06704692,69091.0,69075.0,0.07397709]
[1771174209554,0.0004,69084.0,69075.0,0.07397709]
[1771174209692,0.0004,69091.0,69076.0,0.07377709]
[1771174209892,0.0004,69091.0,69081.0,0.07377709]
[1771174210325,0.0004,69091.0,69081.0,0.07363063]
[1771174211233,0.00083094,69091.0,69081.0,0.07363063]
[1771174221126,0.00083094,69091.0,69075.0,0.0002]
[1771174221325,0.00083094,69091.0,69076.0,0.07053474]
[1771174221326,0.12381375,69090.0,69076.0,0.07053474]
[1771174222140,0.12381375,69090.0,69075.0,0.0002]
[1771174222376,0.06664692,69089.0,69075.0,0.0002]
[1771174222635,0.00083094,69091.0,69080.0,0.62934698]
[1771174222807,0.0004,69098.0,69075.0,0.0002]
[1771174222808,0.0004,69098.0,69088.0,0.62934698]
[1771174223849,0.06704692,69098.0,69088.0,0.62934698]
[1771174224069,0.06704692,69098.0,69087.0,0.07053474]
[1771174225391,0.06710303,69098.0,69087.0,0.07053474]
[1771174229580,0.06710303,69098.0,69070.0,1.1474229]
[1771174229787,0.06710303,69098.0,69076.0,0.07053474]
[1771174230884,0.07341436,69097.0,69076.0,0.07053474]
[1771174231110,0.00045611,69098.0,69070.0,0.51013474]
[1771174231111,0.07341436,69093.0,69070.0,0.51013474]
[1771174231316,0.06664692,69090.0,69070.0,0.4396]
[1771174231448,0.07341436,69088.0,69070.0,0.4396]
[1771174231635,0.06664692,69085.0,69070.0,0.4396]
[1771174235375,0.06664692,69085.0,69071.0,0.07053474]
[1771174235599,0.06664692,69085.0,69074.0,0.07053474]
[1771174235857,0.0004,69091.0,69075.0,0.07073474]
[1771174235858,0.06664692,69090.0,69075.0,0.07073474]
[1771174245598,0.06664692,69090.0,69075.0,0.0002]
[1771174247726,0.06704692,69090.0,69075.0,0.0002]
[1771174249824,0.12381375,69088.0,69075.0,0.0002]
[1771174260739,0.12419435,69088.0,69075.0,0.0002]
[1771174260937,0.02438736,69079.0,69068.0,0.0002]
[1771174261496,0.02438736,69079.0,69069.0,0.62939778]
[1771174261700,0.02460816,69079.0,69069.0,0.62939778]
[1771174262783,0.02460816,69079.0,69068.0,0.0002]
[1771174263112,0.02460816,69079.0,69069.0,0.62939778]
[1771174263334,0.07194944,69087.0,69069.0,0.62939778]
[1771174263335,0.0001598,69087.0,69069.0,0.97627778]
[1771174263520,0.0001598,69087.0,69078.0,0.07087074]
[1771174271535,0.0001598,69087.0,69077.0,0.62939778]
[1771174275063,0.0001598,69087.0,69078.0,0.0002]
[1771174275391,0.0005598,69087.0,69078.0,0.0002]
[1771174287389,0.02384769,69086.0,69078.0,0.0002]
[1771174304239,0.02384769,69086.0,69075.0,0.0002]
[1771174306165,0.02384769,69086.0,69076.0,0.62930395]
[1771174309066,0.0005598,69087.0,69077.0,0.07173382]
[1771174309266,0.0005598,69087.0,69078.0,0.07173382]
[1771174312823,0.0004,69086.0,69078.0,0.07173382]
[1771174320902,0.0004,69086.0,69076.0,0.62950395]
[1771174320903,0.02415399,69084.0,69076.0,0.0002]
[1771174321232,0.02415399,69084.0,69076.0,0.0003358]
[1771174321725,0.0004,69086.0,69070.0,0.000125]
[1771174321726,0.07049688,69082.0,69070.0,0.000125]
[1771174321854,0.02415399,69081.0,69070.0,0.000125]
[1771174322314,0.02415399,69081.0,69078.0,0.0002]
[1771174324204,0.02415399,69081.0,69071.0,0.0002]
[1771174326530,0.62930395,69081.0,69071.0,0.0002]
[1771174326699,0.02415399,69078.0,69070.0,0.000125]
[1771174329744,0.02415399,69078.0,69070.0,0.000325]
[1771174330395,0.31468,69079.0,69064.0,0.0002]
[1771174330396,0.07049688,69077.0,69064.0,0.0002]
[1771174330595,0.02415399,69072.0,69063.0,0.000325]
[1771174331523,0.02419703,69072.0,69063.0,0.000325]
[1771174333262,0.07053992,69072.0,69063.0,0.000325]
[1771174333380,0.02302437,69071.0,69063.0,0.00017853]
[1771174333587,0.02302437,69071.0,69063.0,3.206e-05]
[1771174334439,0.31556,69071.0,69063.0,0.07258262]
[1771174335463,0.3158046,69071.0,69063.0,0.07258262]
[1771174336415,0.3158046,69071.0,69063.0,3.206e-05]
[1771174336829,0.3158046,69071.0,69063.0,0.07258262]
[1771174337641,0.0002446,69071.0,69063.0,0.07258262]
[1771174342027,0.0001976,69080.0,69064.0,0.01895942]
[1771174342253,0.00024065,69080.0,69071.0,0.07255056]
[1771174342658,0.0004,69078.0,69071.0,0.07255056]
[1771174344495,0.02302437,69077.0,69063.0,3.206e-05]
[1771174348482,0.0004,69085.0,69067.0,0.62960069]
[1771174348652,0.0004,69085.0,69075.0,0.07255056]
[1771174349981,0.0004,69085.0,69071.0,0.07255056]
[1771174349982,0.0004,69078.0,69071.0,0.07255056]
[1771174350195,0.0004,69085.0,69076.0,0.07255056]
[1771174350600,0.0004,69085.0,69077.0,0.07255056]
[1771174350810,0.0004,69087.0,69078.0,0.01895942]
[1771174351022,0.0004,69087.0,69079.0,0.07255056]
[1771174360000,0.0004,69087.0,69070.0,0.62960069]
[1771174360001,0.02302437,69086.0,69070.0,0.62960069]
[1771174360413,0.0004,69087.0,69067.0,0.00043094]
[1771174360414,0.07432496,69085.0,69067.0,0.00043094]
[1771174360633,0.0004,69087.0,69067.0,0.00043094]
[1771174360634,0.07432496,69079.0,69067.0,0.00043094]
[1771174360868,0.02302437,69078.0,69067.0,0.00043094]
[1771174362941,0.02302437,69078.0,69067.0,0.00063094]
[1771174364126,0.06753832,69078.0,69067.0,0.00063094]
[1771174364338,0.0248779,69077.0,69067.0,0.00063094]
[1771174364540,0.06753832,69077.0,69067.0,0.00063094]
[1771174364782,0.0248779,69076.0,69067.0,0.00063094]
[1771174365188,0.0248779,69074.0,69067.0,0.00063094]
[1771174369747,0.06753832,69073.0,69067.0,0.00063094]
[1771174369904,0.0248779,69071.0,69067.0,0.00063094]
[1771174372957,0.31436,69072.0,69067.0,0.00063094]
[1771174373376,0.3392379,69072.0,69067.0,0.00063094]
[1771174373585,0.0248779,69072.0,69067.0,0.00063094]
[1771174373784,0.3397179,69072.0,69067.0,0.00063094]
[1771174374894,0.0248779,69071.0,69067.0,0.00063094]
[1771174376268,0.3400379,69071.0,69067.0,0.00063094]
[1771174377746,0.0248779,69070.0,69067.0,0.00063094]
[1771174381101,0.0248779,69070.0,69063.0,3.206e-05]
[1771174381442,0.0248779,69070.0,69064.0,0.00024305]
[1771174382195,0.09241622,69070.0,69057.0,0.0002]
[1771174382395,0.0248779,69069.0,69057.0,0.00028104]
[1771174384888,0.0004,69080.0,69060.0,0.06984443]
[1771174385115,0.0004,69080.0,69059.0,0.62960069]
[1771174385116,0.0004,69080.0,69071.0,0.06984443]
[1771174385288,0.0004,69072.0,69071.0,0.06984443]
[1771174385491,0.30757111,69080.0,69070.0,0.69944512]
[1771174386102,0.0004,69079.0,69071.0,0.06984443]
[1771174389153,0.31656,69083.0,69072.0,0.01895942]
[1771174389475,0.31656,69083.0,69073.0,0.06984443]
[1771174390152,0.0252779,69086.0,69073.0,0.06984443]
[1771174390366,0.31668,69085.0,69073.0,0.06984443]
[1771174390733,0.0252779,69086.0,69073.0,0.06984443]
[1771174390938,0.3168,69085.0,69074.0,0.06984443]
[1771174392800,0.3168,69085.0,69075.0,0.06984443]
[1771174393454,0.3172,69085.0,69075.0,0.06984443]
[1771174394480,0.3172,69085.0,69077.0,0.06579684]
[1771174394777,0.0004,69085.0,69078.0,0.06579684]
[1771174396989,0.0004,69085.0,69071.0,0.06579684]
[1771174397144,0.0004,69085.0,69071.0,0.0848373]
[1771174397331,0.0004,69085.0,69072.0,0.06579684]
[1771174399163,0.62960069,69082.0,69071.0,8.104e-05]
[1771174399401,0.02377752,69081.0,69071.0,8.104e-05]
[1771174399784,0.02377752,69081.0,69067.0,0.0002]
[1771174399785,0.06719932,69078.0,69067.0,0.0002]
[1771174399991,0.02377752,69077.0,69067.0,0.0002]
[1771174400476,0.02377752,69077.0,69071.0,0.0002]
[1771174405600,0.02377752,69079.0,69071.0,0.0002]
[1771174408258,0.3182,69078.0,69071.0,0.0002]